bitfinex-derivatives/quotes_BTCF0:USTF0_20241221
["timestamp","ask_amount","ask_price","bid_price","bid_amount"]
[1734792449088,0.011,97460.0,97459.0,0.0945]
[1734792449893,0.011,97460.0,97459.0,0.1099]
[1734792450392,0.011,97460.0,97459.0,0.1089]
[1734792450393,0.003,97460.0,97459.0,0.1089]
[1734792451188,0.0473,97483.0,97459.0,0.1089]
[1734792451389,0.0473,97483.0,97467.0,0.3608]
[1734792451592,0.0473,97483.0,97480.0,0.051305]
[1734792452003,0.0473,97483.0,97481.0,0.051304]
[1734792453493,0.0483,97483.0,97481.0,0.051304]
[1734792454004,0.001,97483.0,97481.0,0.051304]
[1734792454297,0.12210609,97492.0,97482.0,0.0482]
[1734792454502,0.12210609,97492.0,97491.0,0.051299]
[1734792456305,0.12210609,97509.0,97508.0,0.05129]
[1734792457701,0.13710609,97509.0,97508.0,0.05229]
[1734792457897,0.13710609,97509.0,97508.0,0.06246887]
[1734792458092,0.015,97509.0,97508.0,0.06246887]
[1734792459595,0.012,97509.0,97508.0,0.06246887]
[1734792461605,0.3608,97533.0,97532.0,0.051278]
[1734792462191,0.3608,97533.0,97508.0,0.001]
[1734792462397,0.3608,97525.0,97508.0,0.05229]
[1734792462597,0.051286,97517.0,97509.0,0.05129]
[1734792463397,0.051288,97513.0,97505.0,0.18399386]
[1734792463598,0.0434,97512.0,97506.0,0.051291]
[1734792463895,0.0434,97512.0,97509.0,0.001]
[1734792464096,0.051289,97511.0,97509.0,0.001]
[1734792465906,0.054289,97511.0,97509.0,0.001]
[1734792466208,0.054289,97511.0,97502.0,0.3608]
[1734792466409,0.054289,97511.0,97506.0,0.001]
[1734792466600,0.051291,97508.0,97506.0,0.001]
[1734792466907,0.051291,97508.0,97502.0,0.3608]
[1734792467603,0.051291,97508.0,97506.0,0.001]
[1734792468907,0.051291,97508.0,97502.0,0.3608]
[1734792469213,0.051293,97504.0,97502.0,0.3618]
[1734792469514,0.051293,97504.0,97502.0,0.3608]
[1734792470005,0.003,97508.0,97506.0,0.051291]
[1734792470200,0.008,97508.0,97506.0,0.051291]
[1734792470708,0.0473,97526.0,97516.0,0.051286]
[1734792471099,0.0473,97526.0,97520.0,0.051284]
[1734792472205,0.12210609,97536.0,97516.0,0.3608]
[1734792472501,0.12210609,97536.0,97533.0,0.051277]
[1734792473205,0.12210609,97536.0,97535.0,0.051276]
[1734792473408,0.005,97535.0,97534.0,0.051277]
[1734792473799,0.009,97535.0,97534.0,0.051277]
[1734792475203,0.009,97535.0,97534.0,0.052277]
[1734792475396,0.009,97535.0,97534.0,0.413077]
[1734792475601,0.009,97535.0,97534.0,0.414077]
[1734792476012,0.004,97535.0,97534.0,0.413077]
[1734792476207,0.009,97535.0,97534.0,0.414077]
[1734792476709,0.005,97535.0,97534.0,0.413077]
[1734792476914,0.007,97535.0,97534.0,0.413077]
[1734792480511,0.007,97535.0,97534.0,0.001]
[1734792480715,0.0976,97535.0,97534.0,0.001]
[1734792481508,0.148876,97535.0,97534.0,0.001]
[1734792482021,0.0976,97535.0,97534.0,0.001]
[1734792482429,0.051277,97534.0,97518.0,0.051285]
[1734792482720,0.051282,97526.0,97514.0,0.34452]
[1734792482906,0.051282,97526.0,97514.0,0.35492171]
[1734792483311,0.051281,97527.0,97514.0,0.35492171]
[1734792483621,0.051281,97527.0,97524.0,0.051282]
[1734792483822,0.051282,97525.0,97524.0,0.051282]
[1734792484318,0.051282,97525.0,97518.0,0.052285]
[1734792484319,0.051283,97523.0,97518.0,0.052285]
[1734792484620,0.3608,97525.0,97518.0,0.052285]
[1734792484621,0.051284,97520.0,97518.0,0.052285]
[1734792485019,0.3608,97525.0,97524.0,0.002]
[1734792485337,0.01036036,97532.0,97531.0,0.051278]
[1734792485536,0.15298422,97532.0,97531.0,0.051278]
[1734792486522,0.15998422,97532.0,97531.0,0.052278]
[1734792486711,0.15998422,97532.0,97531.0,0.06240987]
[1734792487123,0.007,97532.0,97531.0,0.06240987]
[1734792487419,0.009,97532.0,97531.0,0.06240987]
[1734792488011,0.12241289,97536.0,97531.0,0.01013187]
[1734792488223,0.008,97532.0,97531.0,0.052278]
[1734792488627,0.002,97532.0,97531.0,0.051278]
[1734792488815,0.002,97532.0,97531.0,0.052278]
[1734792488816,0.006,97532.0,97531.0,0.052278]
[1734792489020,0.008,97532.0,97531.0,0.052278]
[1734792490524,0.008,97532.0,97531.0,0.096278]
[1734792491221,0.002,97532.0,97531.0,0.095278]
[1734792491526,0.008,97532.0,97531.0,0.095278]
[1734792492124,0.12395137,97552.0,97531.0,0.095278]
[1734792492125,0.12241289,97552.0,97551.0,0.051268]
[1734792492443,0.12241289,97552.0,97551.0,0.412068]
[1734792493322,0.12241289,97563.0,97562.0,0.051262]
[1734792493526,0.12241289,97563.0,97562.0,0.412062]
[1734792494820,0.0451,97577.0,97562.0,0.3608]
[1734792495125,0.0451,97577.0,97574.0,0.051256]
[1734792495316,0.0451,97577.0,97576.0,0.051255]
[1734792496624,0.002,97577.0,97576.0,0.052255]
[1734792497220,0.12241289,97584.0,97576.0,0.01114463]
[1734792497430,0.12241289,97584.0,97583.0,0.051251]
[1734792498430,0.0423,97590.0,97579.0,0.3608]
[1734792498718,0.0423,97590.0,97587.0,0.051249]
[1734792499121,0.0423,97590.0,97583.0,0.001]
[1734792499317,0.0423,97590.0,97589.0,0.051248]
[1734792500326,0.002,97590.0,97589.0,0.051248]
[1734792500626,0.002,97590.0,97589.0,0.052248]
[1734792500931,0.002,97590.0,97589.0,0.001]
[1734792501233,0.051257,97573.0,97572.0,8.917e-05]
[1734792501527,0.412057,97573.0,97572.0,8.917e-05]
[1734792502626,0.414057,97573.0,97572.0,8.917e-05]
[1734792503732,0.414057,97573.0,97572.0,0.00108917]
[1734792503926,0.3628,97573.0,97572.0,0.05234617]
[1734792505039,0.3648,97573.0,97572.0,0.05234617]
[1734792505833,0.004,97573.0,97572.0,0.05234617]
[1734792506033,0.004,97573.0,97572.0,0.00108917]
[1734792511036,0.004,97573.0,97550.0,0.15861851]
[1734792511037,0.004,97573.0,97550.0,0.0422]
[1734792511241,0.051263,97562.0,97557.0,0.051265]
[1734792511536,0.051265,97557.0,97550.0,0.01043907]
[1734792511729,0.051263,97561.0,97541.0,0.3166]
[1734792511927,8.917e-05,97560.0,97559.0,0.051264]
[1734792513038,8.917e-05,97560.0,97559.0,0.052264]
[1734792514337,0.00108917,97560.0,97559.0,0.052264]
[1734792514836,8.917e-05,97560.0,97559.0,0.06264943]
[1734792515135,8.917e-05,97560.0,97559.0,0.06364943]
[1734792515335,8.917e-05,97560.0,97559.0,0.06564943]
[1734792515923,8.917e-05,97560.0,97559.0,0.06364943]
[1734792516121,8.917e-05,97560.0,97559.0,0.06464943]
[1734792516938,8.917e-05,97560.0,97559.0,0.06564943]
[1734792518427,8.917e-05,97560.0,97559.0,0.06664943]
[1734792519236,8.917e-05,97560.0,97559.0,0.06564943]
[1734792522835,0.12241289,97570.0,97559.0,0.06564943]
[1734792522836,0.08007535,97570.0,97569.0,0.051259]
[1734792523030,0.01018067,97570.0,97569.0,0.412059]
[1734792523638,0.00746044,97570.0,97569.0,0.412059]
[1734792524332,0.00946044,97570.0,97569.0,0.412059]
[1734792524635,0.002,97570.0,97569.0,0.66692816]
[1734792524833,0.12241289,97590.0,97589.0,0.051248]
[1734792526440,0.002,97590.0,97584.0,0.05125]
[1734792526742,0.002,97590.0,97589.0,0.051248]
[1734792526929,0.004,97590.0,97589.0,0.052248]
[1734792528837,0.002,97590.0,97589.0,0.052248]
[1734792529038,0.004,97590.0,97589.0,0.052248]
[1734792529741,0.004,97590.0,97589.0,0.067648]
[1734792530837,0.002,97590.0,97589.0,0.069648]
[1734792531041,0.12241289,97599.0,97589.0,0.069648]
[1734792531239,0.12241289,97599.0,97598.0,0.051243]
[1734792531439,0.48321289,97603.0,97598.0,0.051243]
[1734792533039,0.3608,97603.0,97598.0,0.051243]
[1734792534035,0.102,97600.0,97598.0,0.051243]
[1734792534237,0.103,97600.0,97598.0,0.051243]
[1734792534550,0.103,97600.0,97598.0,0.06143574]
[1734792539440,0.103,97600.0,97599.0,0.3608]
[1734792540550,0.102,97600.0,97599.0,0.3608]
[1734792540749,0.103,97600.0,97599.0,0.3608]
[1734792541053,0.12241289,97616.0,97600.0,0.2734]
[1734792541242,0.12241289,97616.0,97615.0,0.412034]
[1734792541438,0.12241289,97617.0,97615.0,0.412034]
[1734792542151,0.002,97616.0,97615.0,0.412034]
[1734792542751,0.002,97616.0,97600.0,0.37541851]
[1734792542752,0.002,97616.0,97609.0,0.051237]
[1734792542959,0.0453,97615.0,97609.0,0.051237]
[1734792543142,0.0453,97615.0,97600.0,0.001]
[1734792543345,0.051241,97602.0,97600.0,0.001]
[1734792543641,0.051242,97600.0,97599.0,0.18392676]
[1734792543842,0.3608,97600.0,97594.0,0.24523568]
[1734792544052,0.051245,97595.0,97594.0,0.17593568]
[1734792544453,0.36899704,97600.0,97587.0,0.00136]
[1734792544652,0.3608,97591.0,97577.0,0.051254]
[1734792544955,0.412053,97579.0,97577.0,0.051254]
[1734792545157,0.3608,97579.0,97577.0,0.06152327]
[1734792545653,0.3608,97591.0,97589.0,0.051248]
[1734792546152,0.15298422,97590.0,97589.0,0.051248]
[1734792547356,0.001,97591.0,97589.0,0.095948]
[1734792547549,0.12247337,97599.0,97598.0,0.051243]
[1734792548843,9.816e-05,97599.0,97598.0,0.051243]
[1734792549043,9.816e-05,97599.0,97598.0,0.052243]
[1734792549246,9.816e-05,97599.0,97598.0,0.0625709]
[1734792549856,0.00109816,97599.0,97598.0,0.0779709]
[1734792550253,9.816e-05,97599.0,97598.0,0.0789709]
[1734792550453,0.12137522,97608.0,97607.0,0.324639]
[1734792551562,0.15298422,97623.0,97606.0,0.3608]
[1734792551766,0.15298422,97623.0,97621.0,0.051232]
[1734792552962,0.15298422,97624.0,97621.0,0.051232]
[1734792553257,0.15298422,97624.0,97622.0,0.051231]
[1734792554051,0.001,97623.0,97622.0,0.051231]
[1734792554554,0.051232,97622.0,97621.0,0.001]
[1734792555057,0.051232,97622.0,97620.0,0.051232]
[1734792555957,0.20521622,97622.0,97620.0,0.051232]
[1734792556464,0.051234,97618.0,97612.0,0.051236]
[1734792556757,0.051235,97615.0,97612.0,0.051236]
[1734792556960,0.3608,97613.0,97612.0,0.051236]
[1734792557872,0.3608,97613.0,97612.0,0.052236]
[1734792558262,0.3618,97613.0,97612.0,0.051236]
[1734792558463,0.3628,97613.0,97612.0,0.052236]
[1734792558671,0.41261116,97613.0,97612.0,0.052236]
[1734792558871,0.41261116,97613.0,97612.0,0.001]
[1734792562174,0.41161116,97613.0,97612.0,0.001]
[1734792562376,0.41261116,97613.0,97612.0,0.001]
[1734792563274,0.41261116,97613.0,97590.0,0.0461]
[1734792563477,0.41261116,97613.0,97612.0,0.001]
[1734792563771,0.47390705,97613.0,97612.0,0.001]
[1734792564167,0.65748812,97613.0,97612.0,0.001]
[1734792565264,0.59619223,97613.0,97612.0,0.001]
[1734792565674,0.41261116,97613.0,97612.0,0.0437]
[1734792566176,0.41261116,97613.0,97612.0,0.05377534]
[1734792566769,0.41261116,97613.0,97612.0,0.09967534]
[1734792567078,0.3628,97613.0,97612.0,0.09967534]
[1734792567263,0.3628,97613.0,97591.0,0.2734]
[1734792567469,0.3608,97600.0,97599.0,0.051244]
[1734792568272,0.2916,97600.0,97599.0,0.051244]
[1734792569779,0.3608,97613.0,97612.0,0.051237]
[1734792570175,0.15325917,97617.0,97612.0,0.051237]
[1734792570375,0.15325917,97617.0,97616.0,0.051235]
[1734792571073,0.3608,97629.0,97612.0,0.052237]
[1734792571074,0.003,97613.0,97612.0,0.052237]
[1734792572577,0.003,97617.0,97616.0,0.052235]
[1734792572985,0.003,97617.0,97616.0,0.051235]
[1734792573187,0.001,97617.0,97616.0,0.051235]
[1734792573976,0.003,97617.0,97616.0,0.052235]
[1734792574176,0.002,97617.0,97616.0,0.052235]
[1734792574983,0.003,97617.0,97616.0,0.052235]
[1734792575285,0.003,97617.0,97616.0,0.06260885]
[1734792576086,0.3638,97617.0,97616.0,0.001]
[1734792577384,0.4056,97617.0,97616.0,0.001]
[1734792577974,0.3638,97617.0,97616.0,0.052238]
[1734792578180,0.4136098,97617.0,97616.0,0.052238]
[1734792579984,0.3638,97617.0,97616.0,0.052238]
[1734792584187,0.4076,97617.0,97616.0,0.052238]
[1734792584578,0.64132177,97617.0,97616.0,0.052238]
[1734792585494,0.64132177,97617.0,97616.0,0.001]
[1734792585887,0.45741076,97617.0,97616.0,0.001]
[1734792587186,0.64132177,97617.0,97616.0,0.001]
[1734792588196,0.64132177,97617.0,97595.0,0.0422]
[1734792588392,0.3608,97596.0,97595.0,0.09345]
[1734792588989,0.3608,97596.0,97595.0,0.10375624]
[1734792589497,0.7216,97596.0,97595.0,0.06155624]
[1734792589794,0.772849,97596.0,97595.0,0.05125]
[1734792590190,0.772849,97596.0,97595.0,0.05325]
[1734792590584,0.772849,97596.0,97595.0,0.05525]
[1734792590898,0.772849,97596.0,97595.0,0.004]
[1734792591698,0.051256,97583.0,97564.0,0.0427]
[1734792591900,0.412056,97583.0,97572.0,0.01291624]
[1734792592396,0.05126,97575.0,97564.0,0.05568569]
[1734792592586,0.3608,97565.0,97564.0,0.10695169]
[1734792594291,0.3608,97565.0,97564.0,0.11595169]
[1734792594484,0.3608,97565.0,97564.0,0.12395169]
[1734792595890,0.3608,97565.0,97564.0,0.08125169]
[1734792597301,0.3608,97565.0,97564.0,0.08025169]
[1734792600602,0.3608,97565.0,97564.0,0.067266]
[1734792600998,0.3608,97565.0,97564.0,0.016]
[1734792602790,0.051271,97554.0,97544.0,0.00153756]
[1734792602991,0.412071,97554.0,97544.0,0.00153756]
[1734792604004,0.417071,97554.0,97544.0,0.00153756]
[1734792604400,0.413071,97554.0,97544.0,0.00153756]
[1734792604599,0.413071,97554.0,97553.0,0.00110088]
[1734792604600,0.419071,97554.0,97553.0,0.00110088]
[1734792604906,0.419071,97554.0,97504.0,0.2734]
[1734792604907,0.68061236,97554.0,97504.0,0.2734]
[1734792605113,0.3608,97519.0,97517.0,0.05129]
[1734792605702,0.3608,97519.0,97500.0,0.1]
[1734792606008,0.7216,97501.0,97500.0,0.1]
[1734792606506,0.7216,97501.0,97500.0,0.151299]
[1734792606802,0.3608,97501.0,97500.0,0.151299]
[1734792607401,0.3608,97501.0,97500.0,0.154299]
[1734792609303,0.3608,97501.0,97500.0,0.152299]
[1734792609504,0.3608,97501.0,97500.0,0.155299]
[1734792609803,0.3608,97501.0,97500.0,0.170699]
[1734792610011,0.3598,97501.0,97500.0,0.170699]
[1734792610208,0.3598,97501.0,97500.0,0.169699]
[1734792610508,0.3598,97501.0,97500.0,0.154299]
[1734792612001,0.3598,97501.0,97500.0,0.155299]
[1734792613399,0.3598,97501.0,97500.0,0.154299]
[1734792613600,0.3598,97501.0,97500.0,0.158299]
[1734792615205,0.3598,97501.0,97500.0,0.107]
[1734792615508,0.7206,97501.0,97500.0,0.107]
[1734792615814,0.73359054,97501.0,97500.0,0.107]
[1734792616111,0.8088,97501.0,97500.0,0.107]
[1734792616410,0.8088,97501.0,97500.0,0.106]
[1734792617111,0.7668,97501.0,97500.0,0.106]
[1734792617305,0.7668,97501.0,97500.0,0.105]
[1734792617507,0.8118,97501.0,97500.0,0.105]
[1734792619107,0.8118,97501.0,97500.0,0.0357]
[1734792619312,0.8118,97501.0,97454.0,0.2734]
[1734792619313,0.051311,97478.0,97472.0,0.051314]
[1734792619509,0.772911,97478.0,97472.0,0.051314]
[1734792619812,0.772911,97478.0,97475.0,0.051313]
[1734792620408,0.773911,97478.0,97475.0,0.051313]
[1734792621009,0.7226,97478.0,97476.0,0.051312]
[1734792621207,0.7226,97478.0,97477.0,0.007081]
[1734792621417,0.7236,97478.0,97477.0,0.007081]
[1734792622613,0.7653,97478.0,97477.0,0.007081]
[1734792623304,0.8093,97478.0,97477.0,0.007081]
[1734792624110,0.8083,97478.0,97477.0,0.009081]
[1734792624312,0.7226,97478.0,97477.0,0.009081]
[1734792624818,0.7226,97478.0,97477.0,0.004081]
[1734792624819,0.773911,97478.0,97477.0,0.004081]
[1734792625000,0.7226,97478.0,97477.0,0.008081]
[1734792625815,0.773911,97478.0,97477.0,0.008081]
[1734792629217,0.7226,97478.0,97477.0,0.008081]
[1734792632018,0.051322,97458.0,97457.0,0.051322]
[1734792632222,0.772922,97458.0,97457.0,0.06380654]
[1734792632422,0.7216,97458.0,97452.0,0.0459]
[1734792632610,0.051324,97454.0,97452.0,0.0459]
[1734792632807,0.05144432,97453.0,97451.0,0.137625]
[1734792633011,0.05144432,97453.0,97451.0,0.15018862]
[1734792633212,0.05144432,97453.0,97451.0,0.137625]
[1734792633424,0.051325,97452.0,97438.0,0.095432]
[1734792633625,0.3608,97442.0,97439.0,0.051331]
[1734792633814,0.051334,97435.0,97431.0,0.051336]
[1734792634021,0.3608,97434.0,97431.0,0.051336]
[1734792634814,0.3608,97434.0,97432.0,0.051335]
[1734792636022,0.3608,97434.0,97433.0,0.00453941]
[1734792636325,0.3618,97434.0,97433.0,0.00453941]
[1734792638321,0.2925,97434.0,97433.0,0.00453941]
[1734792640128,0.001,97434.0,97433.0,0.36533941]
[1734792641127,0.3608,97452.0,97433.0,0.36533941]
[1734792642124,0.3608,97452.0,97451.0,0.051325]
[1734792642924,0.3618,97452.0,97451.0,0.051325]
[1734792643132,0.413125,97452.0,97441.0,0.05133]
[1734792643435,0.3608,97442.0,97441.0,0.05133]
[1734792644724,0.3608,97442.0,97441.0,0.05333]
[1734792645118,0.3608,97442.0,97441.0,0.05533]
[1734792646126,0.3608,97442.0,97441.0,0.0677341]
[1734792647119,0.3608,97442.0,97441.0,0.0667341]
[1734792648014,0.318019,97442.0,97441.0,0.0667341]
[1734792649932,0.318019,97442.0,97441.0,0.0821341]
[1734792650417,0.318019,97442.0,97441.0,0.0801341]
[1734792650621,0.318019,97442.0,97441.0,0.0811341]
[1734792653632,0.318019,97442.0,97441.0,0.0657341]
[1734792653829,0.318019,97442.0,97441.0,0.002]
[1734792654228,0.403619,97442.0,97441.0,0.002]
[1734792654728,0.41608545,97442.0,97441.0,0.002]
[1734792657422,0.42208545,97442.0,97441.0,0.002]
[1734792657819,0.47198636,97442.0,97441.0,0.001]
[1734792658037,0.48098636,97442.0,97428.0,0.051337]
[1734792658225,0.3608,97429.0,97428.0,0.051337]
[1734792658724,0.412137,97429.0,97428.0,0.051337]
[1734792659125,0.3608,97429.0,97428.0,0.051337]
[1734792659321,0.48353218,97429.0,97428.0,0.051337]
[1734792659528,0.49253218,97429.0,97428.0,0.051337]
[1734792660036,0.49253218,97429.0,97428.0,0.052337]
[1734792660825,0.013,97429.0,97428.0,0.051337]
[1734792666635,0.051337,97428.0,97426.0,0.00012718]
[1734792666942,0.3608,97427.0,97418.0,0.24399762]
[1734792667141,0.412142,97419.0,97418.0,0.24399762]
[1734792667843,0.41226133,97419.0,97418.0,0.24399762]
[1734792669439,0.051347,97409.0,97402.0,0.01214361]
[1734792669634,0.412147,97409.0,97402.0,0.051351]
[1734792669839,0.051352,97401.0,97400.0,0.1]
[1734792670038,0.412152,97401.0,97400.0,0.1]
[1734792672548,0.413152,97401.0,97400.0,0.108]
[1734792672847,0.53567664,97401.0,97400.0,0.108]
[1734792673148,0.54736058,97401.0,97400.0,0.108]
[1734792673946,0.42483594,97401.0,97400.0,0.108]
[1734792676948,0.051357,97383.0,97376.0,7.653e-05]
[1734792677153,0.3608,97377.0,97376.0,7.653e-05]
[1734792677451,0.41216,97377.0,97376.0,7.653e-05]
[1734792677950,0.41228947,97377.0,97376.0,7.653e-05]
[1734792679045,0.44888947,97377.0,97376.0,7.653e-05]
[1734792679548,0.051368,97362.0,97361.0,0.00154054]
[1734792679754,0.412168,97362.0,97361.0,0.00154054]
[1734792680351,0.412168,97362.0,97353.0,0.051372]
[1734792680352,0.05137,97358.0,97353.0,0.01215725]
[1734792680547,0.05137,97358.0,97351.0,0.0456]
[1734792681378,0.3608,97362.0,97351.0,0.0456]
[1734792681878,0.3618,97362.0,97360.0,0.051369]
[1734792682174,0.3608,97362.0,97360.0,0.051369]
[1734792683071,0.3618,97362.0,97360.0,0.051369]
[1734792683273,0.3618,97362.0,97353.0,0.057373]
[1734792683572,0.051368,97361.0,97360.0,0.005]
[1734792683967,0.051373,97352.0,97351.0,0.0456]
[1734792684273,0.3608,97352.0,97333.0,0.01180601]
[1734792684467,0.051383,97333.0,97330.0,0.00012054]
[1734792685072,0.3608,97334.0,97330.0,0.01556054]
[1734792685274,0.051384,97332.0,97330.0,0.00012054]
[1734792686273,0.051384,97332.0,97330.0,0.00312054]
[1734792686872,0.051384,97332.0,97330.0,0.00012054]
[1734792687070,0.051384,97332.0,97330.0,0.00312054]
[1734792687973,0.052384,97332.0,97330.0,0.00312054]
[1734792688571,0.055384,97332.0,97330.0,0.00312054]
[1734792688783,0.055384,97332.0,97306.0,0.0899]
[1734792688977,0.412197,97307.0,97306.0,0.0899]
[1734792689280,0.412197,97307.0,97306.0,0.0451]
[1734792689975,0.41231366,97307.0,97306.0,0.0451]
[1734792690275,0.0514,97302.0,97300.0,0.1]
[1734792691181,0.36191666,97307.0,97305.0,0.051397]
[1734792691680,0.36091666,97307.0,97305.0,0.051397]
[1734792691874,0.21961666,97307.0,97305.0,0.051397]
[1734792692074,0.3608,97326.0,97307.0,0.051397]
[1734792692374,0.3608,97326.0,97322.0,0.051389]
[1734792692572,0.00154187,97331.0,97327.0,0.051386]
[1734792693185,0.00013355,97330.0,97327.0,0.051386]
[1734792693369,0.00013355,97330.0,97329.0,0.051385]
[1734792693571,0.00154187,97331.0,97329.0,0.051385]
[1734792693875,0.051373,97352.0,97343.0,0.051378]
[1734792694078,0.3608,97354.0,97335.0,0.3608]
[1734792694578,0.00011024,97352.0,97349.0,0.051375]
[1734792694879,0.00011024,97352.0,97350.0,0.051374]
[1734792695283,0.00011024,97352.0,97342.0,0.051378]
[1734792695579,0.00011024,97352.0,97347.0,0.051376]
[1734792695968,0.00911024,97352.0,97343.0,0.3608]
[1734792696265,0.00911024,97352.0,97350.0,0.051374]
[1734792696471,0.00111024,97352.0,97350.0,0.051374]
[1734792696875,0.00111024,97352.0,97351.0,0.0431]
[1734792697878,0.00011024,97352.0,97351.0,0.0431]
[1734792698178,0.00111024,97352.0,97351.0,0.0431]
[1734792698769,0.001,97352.0,97351.0,0.4039]
[1734792698978,0.051363,97372.0,97361.0,0.051368]
[1734792699281,0.14295919,97378.0,97361.0,0.051368]
[1734792699475,0.09159919,97378.0,97361.0,0.051368]
[1734792699986,0.09159919,97378.0,97375.0,0.051361]
[1734792700581,0.09159919,97378.0,97368.0,0.3608]
[1734792700582,0.3608,97384.0,97376.0,0.05136]
[1734792701075,0.3608,97384.0,97368.0,0.3608]
[1734792701076,0.051358,97381.0,97368.0,0.412164]
[1734792701474,0.051358,97381.0,97368.0,0.3608]
[1734792701675,0.051358,97381.0,97374.0,0.051361]
[1734792702081,0.005,97378.0,97376.0,0.001]
[1734792702380,0.05136,97377.0,97376.0,0.001]
[1734792702576,0.005,97378.0,97351.0,0.0431]
[1734792702879,0.051372,97354.0,97347.0,0.3608]
[1734792703272,0.051369,97361.0,97354.0,0.051372]
[1734792703481,0.051369,97361.0,97355.0,0.051371]
[1734792704578,0.051369,97361.0,97347.0,0.3608]
[1734792704579,0.3608,97365.0,97357.0,0.05137]
[1734792704780,0.009,97361.0,97359.0,0.051369]
[1734792705375,0.014,97361.0,97359.0,0.051369]
[1734792705966,0.009,97361.0,97359.0,0.052369]
[1734792706173,0.015,97361.0,97359.0,0.052369]
[1734792706779,0.012,97361.0,97359.0,0.052369]
[1734792707990,0.003,97361.0,97359.0,0.052369]
[1734792708480,0.09159919,97374.0,97372.0,0.051362]
[1734792709180,0.14295619,97384.0,97363.0,0.3608]
[1734792709478,0.14295619,97384.0,97376.0,0.05136]
[1734792709680,0.14295619,97384.0,97379.0,0.051359]
[1734792710282,0.412157,97383.0,97379.0,0.051359]
[1734792710585,0.3608,97383.0,97369.0,0.066804]
[1734792710774,0.051362,97373.0,97369.0,0.066804]
[1734792710974,0.412162,97373.0,97372.0,0.001]
[1734792711691,0.412162,97373.0,97369.0,0.066804]
[1734792711979,0.3608,97373.0,97371.0,0.051363]
[1734792712183,0.3758,97373.0,97372.0,0.001]
[1734792712976,0.3698,97373.0,97372.0,0.001]
[1734792713288,0.3738,97373.0,97372.0,0.001]
[1734792713877,0.004,97373.0,97358.0,0.01544]
[1734792714076,0.013,97373.0,97371.0,0.001]
[1734792714580,0.051363,97372.0,97369.0,0.051364]
[1734792715287,0.051363,97372.0,97371.0,0.001]
[1734792715786,0.015,97373.0,97371.0,0.001]
[1734792715975,0.009,97373.0,97372.0,0.051363]
[1734792717291,0.3608,97381.0,97377.0,0.05136]
[1734792717474,0.3608,97381.0,97369.0,0.001]
[1734792717680,0.3608,97381.0,97378.0,0.051359]
[1734792717987,0.3608,97381.0,97379.0,0.051359]
[1734792718578,0.3698,97381.0,97379.0,0.051359]
[1734792719085,0.3768,97381.0,97379.0,0.052359]
[1734792720289,0.051358,97380.0,97379.0,0.001]
[1734792720690,0.3768,97381.0,97379.0,0.001]
[1734792720898,0.3768,97381.0,97379.0,0.052359]
[1734792721392,0.3698,97381.0,97379.0,0.052359]
[1734792721593,0.007,97380.0,97379.0,0.051359]
[1734792721891,0.016,97380.0,97379.0,0.052359]
[1734792722283,0.3768,97381.0,97379.0,0.052359]
[1734792723689,0.15329426,97382.0,97379.0,0.3608]
[1734792723995,0.016,97380.0,97379.0,0.413159]
[1734792724293,0.007,97380.0,97379.0,0.412159]
[1734792724496,0.007,97380.0,97379.0,0.413159]
[1734792724699,0.016,97381.0,97379.0,0.413159]
[1734792724889,0.007,97381.0,97379.0,0.413159]
[1734792725500,0.006,97380.0,97379.0,0.413163]
[1734792726186,0.09796277,97380.0,97379.0,0.413163]
[1734792726490,0.09796277,97380.0,97379.0,0.412163]
[1734792726698,0.10696277,97380.0,97379.0,0.413163]
[1734792726891,0.10096277,97380.0,97379.0,0.413163]
[1734792727690,0.009,97380.0,97379.0,0.413163]
[1734792727895,0.015,97380.0,97379.0,0.413163]
[1734792728988,0.12261103,97385.0,97379.0,0.413163]
[1734792729195,0.12261103,97385.0,97384.0,0.051361]
[1734792729789,0.15329426,97390.0,97389.0,0.051358]
[1734792729989,0.18391343,97396.0,97388.0,0.3608]
[1734792730186,0.18391343,97396.0,97395.0,0.412155]
[1734792730392,0.10791343,97396.0,97395.0,0.412155]
[1734792730601,0.10791343,97405.0,97395.0,0.712155]
[1734792730806,0.10791343,97405.0,97404.0,0.41215]
[1734792732107,0.26246955,97417.0,97415.0,0.051344]
[1734792732108,0.0493,97417.0,97415.0,0.051344]
[1734792733299,0.3608,97431.0,97430.0,0.051336]
[1734792734601,0.3698,97431.0,97430.0,0.052336]
[1734792736397,0.009,97431.0,97430.0,0.052336]
[1734792736894,0.015,97431.0,97430.0,0.053336]
[1734792737792,0.015,97431.0,97430.0,0.414136]
[1734792737995,0.015,97431.0,97430.0,0.687536]
[1734792738591,0.048,97451.0,97450.0,0.051326]
[1734792739492,0.3608,97472.0,97452.0,0.051325]
[1734792739806,0.0474,97463.0,97452.0,0.051325]
[1734792740594,0.0474,97463.0,97460.0,0.051321]
[1734792741116,0.0474,97463.0,97462.0,0.051319]
[1734792742300,0.0474,97463.0,97462.0,0.052319]
[1734792742501,0.051307,97487.0,97462.0,0.052319]
[1734792742502,0.01151598,97493.0,97463.0,0.27493891]
[1734792742710,0.0496,97487.0,97485.0,0.3608]
[1734792742895,0.0496,97487.0,97486.0,0.051307]
[1734792744306,0.4104,97487.0,97486.0,0.051307]
[1734792744615,0.05131,97480.0,97469.0,0.051316]
[1734792744808,0.3608,97476.0,97469.0,0.051316]
[1734792745104,0.3608,97476.0,97470.0,0.051315]
[1734792745310,0.3608,97476.0,97463.0,0.01288717]
[1734792745807,0.3608,97476.0,97469.0,0.001]